Cogmind - Beta 12 @@@ ROGUE MODE // 2023.09.02 @ 19:27:02 Player: Senator Honkstrong Result: Destroyed by D-53 Grenadier with Mini Grenade Launcher Performance ------------- Evolutions (0) 0 Regions Visited (2) 400 Robots Destroyed (52) 260 Value Destroyed (961) 961 Prototype IDs (4) 80 Alien Tech Used (0) 0 Bonus (0) 0 TOTAL SCORE: 1701 Bonus ------- None Cogmind --------- Core Integrity 0/250 Matter 287/300 Energy 250/250 System Corruption 0% Temperature Cool (27) Movement Treading (240) Ox1 Location -10/Mines Parts ------- > --- POWER (1) -------- Ion Engine > --- PROPULSION (2) --- Light Treads > --- UTILITY (2) ------ Large Storage Unit Medium Armor Plating > --- WEAPON (2) ------- Beam Cannon Assault Rifle > --- INVENTORY (15) --- Ion Engine Light Treads Light Treads Improved Heat Sink Large Matter Pod (15) Medium Armor Plating Medium Armor Plating Medium Armor Plating Hacking Suite Hacking Suite Assault Rifle Assault Rifle Grenade Launcher Datajack Peak State ------------ > --- POWER ------------ Ion Engine > --- PROPULSION ------- Light Treads Light Treads > --- UTILITY ---------- Small Storage Unit Improved Terrain Scanner > --- WEAPON ----------- Particle Gun Assault Rifle > --- INVENTORY -------- Ion Engine Aluminum Leg Aluminum Leg Hacking Suite Small Laser Small Laser Grenade Launcher Datajack [Rating: 11] Favorites ----------- Power Ion Engine Engine Ion Engine Propulsion Light Treads Treads Light Treads Utility Targeting Computer Device Improved Terrain Scanner Storage Large Storage Unit Processor Targeting Computer Protection Medium Armor Plating Weapon Assault Rifle Energy Gun Particle Gun Energy Cannon Beam Cannon Ballistic Gun Assault Rifle Launcher Grenade Launcher Special Melee Weapon Datajack Build | -11 -10 -10 ------- Run | Jun Mat Min Slots Evolved . | . . . Power . | . . . Propulsion . | . . . Utility . | . . . Weapon . | . . . Parts Attached 30 | 7 21 2 Power 2 | 1 1 . Engine 2 | 1 1 . Core . | . . . Reactor . | . . . Propulsion 2 | 2 . . Treads 2 | 2 . . Leg . | . . . Wheel . | . . . Hover . | . . . Flight . | . . . Utility 7 | 2 5 . Device 2 | 1 1 . Storage 3 | 1 2 . Processor 1 | . 1 . Hackware . | . . . Protection 1 | . 1 . Artifact . | . . . Weapon 19 | 2 15 2 Energy Gun 3 | 1 2 . Energy Cannon 2 | . 1 1 Ballistic Gun 7 | 1 5 1 Ballistic Cannon . | . . . Launcher 5 | . 5 . Special Weapon . | . . . Impact Weapon . | . . . Slashing Weapon . | . . . Piercing Weapon . | . . . Special Melee Weapon 2 | . 2 . Unidentified Prototypes . | . . . Parts Lost 2 | . . 2 Power . | . . . Propulsion 1 | . . 1 Utility . | . . . Weapon 1 | . . 1 Highest Loss Streak 2 | . . 2 To Critical Strikes . | . . . Average Slot Usage (%) 99 | . 99 100 Engine 13 | . 13 14 Treads 28 | . 28 28 Device 1 | . 1 . Storage 14 | . 14 14 Processor 11 | . 11 . Protection 1 | . . 14 Energy Gun 7 | . 7 . Ballistic Gun 11 | . 11 14 Launcher 7 | . 7 . Special Melee Weapon 1 | . 1 . Naked Turns . | . . . Heaviest Build 37 | 14 37 37 Greatest Support 40 | 40 40 40 Greatest Overweight (x) 1 | 1 . 1 Average Overweight (x) . | . . . Largest Inventory Capacity 15 | 8 15 15 Average Capacity 12 | 7 12 15 Most Carried 15 | 4 15 15 Average Carried 11 | 3 11 14 Final Capacity 15 | 8 15 15 Final Carried 15 | 4 15 14 Class Distribution -------------------- 100% | Mutant Dominant Class ---------------- Mutant | -10/Materials Mutant | -10/Mines Resources | -11 -10 -10 ----------- Run | Jun Mat Min Matter Collected 1399 | 366 895 138 Remotely . | . . . Salvage Created 1288 | 313 891 84 Parts 98 | 37 53 8 Haulers Intercepted 2 | . 2 . Recyclers Shooed 1 | . 1 . Parts Field Recycled . | . . . Retrieved Matter . | . . . Parts Self-Destructed . | . . . Prevented . | . . . Kills | -11 -10 -10 ------- Run | Jun Mat Min Combat Hostiles Destroyed 15 | . 13 2 Guns 10 | . 10 . Cannons 1 | . . 1 AOE 4 | . 3 1 Classes Destroyed 9 | 3 6 . Worker 14 | 4 10 . Builder 1 | . 1 . Tunneler 11 | 9 1 1 Hauler 2 | . 2 . Recycler 2 | 1 1 . Operator 4 | . 4 . Watcher 3 | . 3 . Swarmer 3 | . 3 . Grunt 12 | . 10 2 Best Kill Streak 5 | 5 4 3 Combat Bots Only 3 | . 3 2 Max Kills in Single Turn 3 | 1 3 2 Gunslinging . | . . . Exploded 3 | . 3 1 Melee . | . . . Uniques/NPCs Destroyed . | . . . Combat | -11 -10 -10 -------- Run | Jun Mat Min Damage Taken 957 | . 627 330 Core 259 | . 189 70 Absorbed by Shields . | . . . Regen/Repaired (Parts) 49 | . 49 . Core Remaining (%) 100 | 100 . . Volleys Fired 198 | 32 163 3 Largest 2 | 2 2 2 Hottest 85 | 60 85 80 Shots Fired 309 | 64 239 6 Gun 266 | 64 199 3 Cannon 7 | . 5 2 Launcher 36 | . 35 1 Special . | . . . Kinetic 160 | 32 125 3 Thermal 113 | 32 79 2 Explosive 36 | . 35 1 Electromagnetic . | . . . Robot Hit Streak 13 | 9 13 5 Robot Miss Streak 8 | 8 4 1 Penetration Max . | . . . Secondary Targets 1 | . 1 . Max Gunslinging Chain 1 | . 1 . Shots Hit Robots 166 | 32 129 5 Core Hits 71 | 15 51 5 Critical Kills . | . . . Critical Parts Destroyed . | . . . Critical Strikes 1 | . 1 . Burn 1 | . 1 . Melee Attacks 3 | . 3 . Impact . | . . . Slashing . | . . . Piercing . | . . . Sneak Attacks 3 | . 3 . Combat Hostiles . | . . . Follow-up Attacks . | . . . Damage Inflicted 2612 | 389 2070 153 Guns 2047 | 389 1634 24 Cannons 105 | . 70 35 Explosions 422 | . 332 90 Melee . | . . . Ramming 38 | . 34 4 Kinetic 992 | 169 799 24 Thermal 1160 | 220 905 35 Explosive 422 | . 332 90 Electromagnetic . | . . . Impact . | . . . Slashing . | . . . Piercing . | . . . Highest Corruption . | . . . Average Corruption . | . . . Corruption Purged . | . . . Corruption Blocked . | . . . Overload Shots . | . . . Overflow Damage 12 | . 12 . Projectiles 2 | . 2 . Explosions 10 | . 10 . Melee . | . . . Knockbacks . | . . . Impact . | . . . Kinetic . | . . . Secondary . | . . . Self-Inflicted Damage 30 | . 14 16 Shots 2 | . 1 1 Rammed 11 | . 10 1 Targets Rammed 11 | . 10 1 Kicked . | . . . Crushed . | . . . Highest Temperature 214 | . 214 27 Average Temperature 74 | . 76 13 Received Heat Transfer 402 | . 384 18 Siege Activations . | . . . Robots Corrupted . | . . . Combat Hostiles . | . . . Parts Fried . | . . . Impact Corruptions . | . . . Robots Melted . | . . . Combat Hostiles . | . . . Parts Melted 5 | . 5 . Heat Transferred 2711 | 500 2137 74 Parts Sabotaged . | . . . Parts Stolen . | . . . Parts Stripped . | . . . Power Chain Reactions . | . . . Missiles Intercepted . | . . . Alert | -11 -10 -10 ------- Run | Jun Mat Min Peak Influence 602 | 70 602 300 Initial 222 | . 45 222 Average 235 | 35 253 297 Maximum Alert Level 2 | . 2 1 Low Security (%) 52 | 100 50 . Level 1 23 | . 21 100 Level 2 24 | . 28 . Level 3 . | . . . Level 4 . | . . . Level 5 . | . . . High Security . | . . . Max Security . | . . . Squads Dispatched 5 | . 5 . Investigation 1 | . 1 . Extermination . | . . . Reinforcement 4 | . 4 . Assault . | . . . Garrison . | . . . Intercept . | . . . Searches Triggered . | . . . Construction Impeded . | . . . Haulers Reinforced . | . . . Active Scanning Responses . | . . . Cargo Convoy Interrupts . | . . . Stealth | -11 -10 -10 --------- Run | Jun Mat Min Distress Signals . | . . . Communications Jammed . | . . . Distress Signals . | . . . Times Spotted 45 | . 27 18 Peak Tracking Total 16 | . 3 16 Tactical Retreats 2 | . 2 . Traps | -11 -10 -10 ------- Run | Jun Mat Min Traps Triggered 1 | . 1 . Indirectly . | . . . Trap Hack Attempts . | . . . Triggered . | . . . Disarmed . | . . . Reprogrammed . | . . . Reused . | . . . Traps Extracted . | . . . Installed . | . . . Triggered . | . . . Machines | -11 -10 -10 ---------- Run | Jun Mat Min Machines Disabled 26 | . 26 . Max in Single Turn 2 | . 2 . Machines Repaired . | . . . Machines Sabotaged . | . . . Overloaded Fab Kills . | . . . Hacking | -11 -10 -10 --------- Run | Jun Mat Min Machines Accessed 6 | . 6 . Terminals 4 | . 4 . Fabricators . | . . . Repair Stations 1 | . 1 . Recycling Units 1 | . 1 . Scanalyzers . | . . . Garrison Access . | . . . Total Hacks 26 | . 26 . Successful 16 | . 16 . Failed 9 | . 9 . Catastrophic 1 | . 1 . Database Lockouts 1 | . 1 . Manual 9 | . 9 . Terminals 18 | . 18 . Fabricators . | . . . Repair Stations 3 | . 3 . Recycling Units 5 | . 5 . Scanalyzers . | . . . Garrison Access . | . . . Terminal Hacks 9 | . 9 . Robot Analysis 1 | . 1 . Prototype ID Bank 3 | . 3 . Emergency Access Points 1 | . 1 . Terminal Index 1 | . 1 . Unreport Threat 1 | . 1 . Locate Traps 1 | . 1 . Dispatch Records 1 | . 1 . Fabricator Hacks . | . . . Repair Station Hacks 2 | . 2 . Scan Component 1 | . 1 . Repair 1 | . 1 . Recycling Unit Hacks 3 | . 3 . Retrieve Matter 1 | . 1 . Retrieve Components 2 | . 2 . Scanalyzer . | . . . Garrison Access Hacks . | . . . Unauthorized Hacks 2 | . 2 . Terminals 2 | . 2 . Botnet 2 | . 2 . Fabricators . | . . . Repair Stations . | . . . Recycling Units . | . . . Scanalyzers . | . . . Garrison Access . | . . . Data Cores Recovered . | . . . Used . | . . . Hacking Detections 5 | . 5 . Full Trace Events . | . . . Feedback Events . | . . . Feedback Blocked . | . . . Robot Schematics Acquired . | . . . Robots Built . | . . . Authchips . | . . . Time . | . . . Total Robot Build Rating . | . . . Part Schematics Acquired . | . . . Parts Built . | . . . Authchips . | . . . Time . | . . . Total Part Build Rating . | . . . Parts Repaired 1 | . 1 . Time 26 | . 26 . Parts Recycled . | . . . Recycled Matter . | . . . Retrieved Matter . | . . . Retrieved Components . | . . . Parts Scanalyzed . | . . . Part Schematics Acquired . | . . . Parts Damaged . | . . . Bothacking | -11 -10 -10 ------------ Run | Jun Mat Min Used RIF Installer . | . . . Robots Hacked 3 | . 3 . Non-combat 3 | . 3 . Combat . | . . . Robot Hacks Applied 3 | . 3 . no_distress 1 | . 1 . check_alert 2 | . 2 . Relay Couplers Released . | . . . Fabnet Peak Effective % . | . . . Robots Rewired . | . . . Allies Hacked . | . . . Hacks Repelled . | . . . Allies | -11 -10 -10 -------- Run | Jun Mat Min Total Allies . | . . . Largest Group . | . . . Highest-Rated Group . | . . . Highest-Rated Ally . | . . . Total Orders . | . . . Ally Attacks . | . . . Total Damage . | . . . Kills . | . . . Allies Corrupted . | . . . Allies Melted . | . . . Intel | -11 -10 -10 ------- Run | Jun Mat Min Robot Analysis Total 1 | . 1 . Derelict Logs Recovered 1 | . . 1 Drone Launches . | . . . Drone Recoveries . | . . . Exploration | -11 -10 -10 ------------- Run | Jun Mat Min Turns Passed 3408 | 317 2925 166 Spaces Moved 1599 | 85 1420 94 Core 4 | 4 . . Treads 1595 | 81 1420 94 Legs . | . . . Wheels . | . . . Hover . | . . . Flight . | . . . Fastest Speed 50 | 50 160 160 Average Speed 159 | 155 160 160 Slowest Speed 240 | 160 160 240 Overloaded Moves . | . . . Propulsion Burnouts . | . . . Robots Hopped . | . . . Cave-ins Triggered . | . . . Exploration Rate (%) 42 | 6 99 21 Regions Visited 2 Branch Regions 1 Pre-discovered Areas . | . . . Known Exits Taken . | . . . Unknown Exits Taken 2 | 1 1 . Scrap Searched . | . . . Spaces Dug 19 | . 19 . Terrain Destroyed 377 | . 369 8 Melee . | . . . Projectile . | . . . AOE 377 | . 369 8 Terrain Rammed . | . . . Walls Destroyed . | . . . Machines Disabled . | . . . Actions | -11 -10 -10 --------- Run | Jun Mat Min Total 2126 | 202 1822 102 Wait 252 | 75 177 . Move 1597 | 84 1419 94 Hop . | . . . Pick Up 23 | 4 18 1 Fast Attach 10 | 7 3 . Attach 1 | . . 1 Detach . | . . . Swap 19 | . 18 1 Drop 12 | . 11 1 Fire 198 | 32 163 3 Melee 3 | . 3 . Ram . | . . . Kick . | . . . Crush 11 | . 10 1 Escape Stasis . | . . . Rewire . | . . . Trap . | . . . Miscellaneous . | . . . Route ------- -11/Junkyard -10/Materials (discovered 4 exits: [*Mat x3] / [*Min]) -10/Mines (discovered 1 exit: [*Mat]) History --------- Turn | Location | Event 4 | -11/Junkyard | Discovered new exit (range 16) 318 | -11/Junkyard | Entered Materials 319 | -10/Materials | Build established: Mutant 334 | -10/Materials | Central database locked down 944 | -10/Materials | Discovered new exit (range 13) 954 | -10/Materials | Core integrity fell below 50% 1295 | -10/Materials | Discovered new exit (range 6) 1638 | -10/Materials | Repaired Ion Engine 1805 | -10/Materials | Discovered new exit (range 8) 3006 | -10/Materials | Discovered new exit (range 4) 3243 | -10/Materials | Entered Mines 3294 | -10/Mines | Discovered new exit (range 8) 3340 | -10/Mines | Learned location of 1 exit from Materials 3375 | -10/Mines | Assembled infested the area 3404 | -10/Mines | Core integrity fell below 20% 3409 | -10/Mines | Destroyed by D-53 Grenadier with Mini Grenade Launcher Last Messages --------------- 03398_ U-05 Engineer destroyed. 03398_ Slammed into T-07 Excavator. 03400_ as-70055 destroyed. 03400_ as-29408 destroyed. 03401_ as-76657 destroyed. 03401_ T-07 Excavator destroyed. 03401_ as-06503 destroyed. 03401_ Acquired 54 matter. 03402_ The unstable cave ceiling collapses. 03403_ Lgt. Treads destroyed. 03403_ as-81778 destroyed. 03403_ as-67250 destroyed. 03403_ as-32637 destroyed. 03403_ as-24605 destroyed. 03403_ as-84679 destroyed. 03404_ The unstable cave ceiling collapses. 03405_ as-71377 destroyed. 03405_ as-56166 destroyed. 03405_ Assault Rifle destroyed. 03407_ D-53 Grenadier destroyed. Map ----- +----------------------------------------------------+ | | | | | | | | | | | | | | | | | | | | | | | ?????????????????????????????????????????????????? | | ?????????#####???????????????????????????????????? | | ????????## ##??????????????????????????????????? | | ????????# #??????????????????????????????????? | | ????????# #??????????????????????????????????? | | ????????# #??????????????????????????????????? | | ???####?# ##?????????????????????????????????? | | ??## ### ####??????????????????????????????? | | ??# #######????????????????????????? | | ??# #????????????????????????? | | ??# #### ######???????????????????? | | ??## ##?## #???????????????????? | | ???# ### ###??# ##??????????????????? | | ???# ##?# #????# #??????????????????? | | ???# < #??# ####?# @ #??????????????????? | | ???## ##??# #?# #?????????????????? | | ????#####???# #?# #?????????????????? | | ????????????#### #?## d #????????????????? | | ???????????????# ##?## ##????????????????? | | ?????????????### #??# %[ #????????????????? | | ?????????###### #??# #????????????????? | | ????????## # #??## ##????????????????? | | ????????# |[ ##??? #?????????????????? | | ????????## * ##???# ?????????????????? | | ?????????## *[! ##????## % #????????????????? | | ??????????#######??????# #????????????????? | | ???????????????????????## # ##????????????????? | | ???????????????????????## % #?????????????????? | | ??????????????????????## #####??????????????? | | ?????????????????????## #??????????????? | | ?????????????????????# #??????????????? | | ??????????????????# %[! #??????????????? | | ?????????????????# =%* ???????????? | | ?????????????????## *!! #####??????????? | | ??????????????????## % = ##??????????????? | | ???????????????????##### ####???????????????? | | ???????????????????????## ##??????????????????? | | ????????????????????????# ##???????????????????? | | ????????????????????????# #????????????????????? | +----------------------------------------------------+ Best States ------------- Heat Dissipation 25 Energy Generation 10 Energy Capacity 250 Matter Stores 300 Matter Capacity 300 Sight Range 16 Terrain Scan Range 16 Terrain Scan Density 10 Armor Coverage 225 Evasion (%) 40 Targeting Accuracy 5 Recoil Reduction 2 Item Schematics ----------------- None Robot Schematics ------------------ None Fabricated ------------ Nothing Alien Tech Used ----------------- None Achievements -------------- None Challenges ------------ None Game ------ Seed ArcNetworkModule Manual? 0 Play Time 00:23:44 Cumulative 55.3 hours Start 2023.09.02 @ 19:03:36 End 2023.09.02 @ 19:27:02 Sessions 1 Manual Loads 0 Difficulty Rogue Special Mode None Game No. 44 Rogue 44 Adventurer 0 Explorer 0 Win Type - Total 0 Types 0/0/0/0/0/0/0/0/0 Lore% 31 Gallery% 39 Achievement% 32 Wizard Run 0 Options --------- ASCII 0 Keyboard 0 Movement Mouse Keybinds 0 Fullscreen 1 Font 18/SmallcapsGlow Map View 76x50 Tactical HUD 1 Map Filters NONE Filters NONE Steam X RUN: d2813be2-a243-424a-bf8e-189aa450a096